bitfinex/quotes_SOLUSD_20251018
["timestamp","ask_amount","ask_price","bid_price","bid_amount"]
[1760766565208,0.1,185.08,185.07,51.05423785]
[1760766565413,0.1,185.08,185.07,73.93423785]
[1760766566361,0.1,185.09,185.08,47.80306894]
[1760766566545,0.1,185.09,185.08,49.04337583]
[1760766566858,0.1,185.12,185.09,0.28432314]
[1760766567140,0.1,185.12,185.11,23.16432314]
[1760766567349,0.1,185.12,185.11,23.86432314]
[1760766568134,0.1,185.12,185.11,71.56651643]
[1760766568342,0.1,185.12,185.11,73.73213187]
[1760766569143,0.1,185.12,185.11,44.46561544]
[1760766569330,0.78,185.12,185.11,42.84021932]
[1760766570437,0.78,185.12,185.11,48.24241261]
[1760766570859,0.78,185.12,185.11,50.40837984]
[1760766572049,0.78,185.12,185.11,45.00618655]
[1760766572261,0.78,185.12,185.11,2.70618655]
[1760766572442,0.78,185.12,185.11,0.54021932]
[1760766572637,0.78,185.12,185.11,5.94241261]
[1760766573261,0.78,185.12,185.11,0.54021932]
[1760766573459,7.63483005,185.12,185.08,1.26614318]
[1760766573664,24.33267001,185.09,184.96,1.24065743]
[1760766573854,1.45267001,185.01,184.96,1.24065743]
[1760766574164,1.45267001,184.99,184.96,0.54065743]
[1760766574368,1.45267001,184.99,184.93,0.54074514]
[1760766574551,1.45267001,184.97,184.93,0.54074514]
[1760766574750,1.45267001,184.97,184.93,1.24074514]
[1760766574950,1.45267001,184.97,184.93,0.54074514]
[1760766575258,1.45267001,184.97,184.93,6.10741093]
[1760766575560,1.45267001,184.99,184.94,1.2407159]
[1760766575762,1.45267001,185.0,184.95,0.7]
[1760766576061,1.45267001,185.0,184.96,1.24065743]
[1760766576564,1.45267001,185.0,184.96,6.64722747]
[1760766577060,14.31197242,185.07,184.97,0.7]
[1760766577061,1.45267001,185.03,184.97,0.7]
[1760766577270,1.45267001,185.02,184.98,0.54059898]
[1760766577458,1.45267001,185.02,184.98,1.24059898]
[1760766578046,1.45267001,185.02,184.98,6.64657438]
[1760766578249,1.45267001,185.03,184.98,6.64657438]
[1760766579069,1.45267001,185.04,184.99,0.69]
[1760766579369,1.45267001,185.04,185.0,0.54054054]
[1760766579550,1.45267001,185.04,185.0,1.23054054]
[1760766580072,1.45267001,185.02,184.97,0.5406282]
[1760766580247,1.45267001,185.01,184.97,0.5406282]
[1760766580448,1.45267001,185.01,184.96,47.70646709]
[1760766580977,1.45267001,185.01,184.96,48.39646709]
[1760766582274,1.45267001,185.0,184.96,48.39646709]
[1760766582671,1.45267001,185.01,184.96,48.39646709]
[1760766582872,1.45267001,185.01,184.96,6.09646709]
[1760766583067,1.45267001,184.99,184.94,1.2307159]
[1760766583272,1.45267001,184.99,184.94,6.63784305]
[1760766583860,1.45267001,184.98,184.94,1.2307159]
[1760766584252,1.45267001,184.98,184.94,0.69]
[1760766584480,1.45267001,184.98,184.94,1.2307159]
[1760766584682,1.45267001,184.99,184.94,1.2307159]
[1760766584986,22.88,185.02,184.94,1.2307159]
[1760766585160,1.45267001,184.99,184.94,1.2307159]
[1760766586883,1.45267001,184.99,184.95,0.69]
[1760766587069,1.45267001,184.99,184.95,42.99]
[1760766587579,1.45267001,184.99,184.95,42.3]
[1760766587879,1.45267001,184.99,184.95,42.99]
[1760766590186,1.45267001,184.99,184.96,0.69]
[1760766590685,1.45267001,184.98,184.96,0.69]
[1760766591872,1.45267001,184.98,184.95,42.3]
[1760766592071,1.45267001,184.97,184.95,42.3]
[1760766592581,1.45267001,184.96,184.95,42.3]
[1760766592982,1.45267001,184.96,184.93,42.99]
[1760766594386,1.45267001,184.96,184.93,42.3]
[1760766594591,1.45267001,184.95,184.93,42.3]
[1760766595170,1.45267001,184.95,184.93,42.99]
[1760766595375,1.45267001,184.94,184.93,42.3]
[1760766595690,1.45267001,184.94,184.9,0.69]
[1760766595988,1.45267001,184.94,184.9,42.99]
[1760766596172,1.45267001,184.94,184.91,0.69]
[1760766596372,0.54021932,184.98,184.9,42.3]
[1760766596573,1.45267001,184.94,184.91,0.69]
[1760766596885,1.45267001,184.94,184.91,42.99]
[1760766597585,1.45267001,184.94,184.91,0.69]
[1760766597780,1.45267001,184.93,184.89,6.09856511]
[1760766598086,1.45267001,184.93,184.9,0.69]
[1760766598288,1.45267001,184.93,184.89,5.40856511]
[1760766598490,1.45267001,184.93,184.9,0.69]
[1760766598888,1.45267001,184.93,184.91,0.69]
[1760766599086,1.45267001,184.93,184.89,42.99]
[1760766599288,1.45267001,184.93,184.9,0.69]
[1760766600191,1.45267001,184.92,184.9,0.69]
[1760766600574,1.45267001,184.97,184.91,0.69]
[1760766600780,1.45267001,184.97,184.92,0.54077438]
[1760766601100,1.45267001,184.97,184.93,0.69]
[1760766601282,1.45267001,184.96,184.94,0.69]
[1760766601891,1.45267001,184.96,184.91,42.3]
[1760766601892,1.45267001,184.96,184.95,0.69]
[1760766602994,1.45267001,184.96,184.93,0.69]
[1760766603295,1.45267001,184.94,184.89,0.69]
[1760766603600,1.45267001,184.93,184.9,0.69]
[1760766603777,1.45267001,184.93,184.91,0.69]
[1760766604701,1.45267001,184.94,184.91,0.69]
[1760766605596,1.45267001,184.93,184.89,43.0]
[1760766605797,1.45267001,184.92,184.89,43.0]
[1760766607503,2.27258118,184.91,184.89,42.3]
[1760766607892,2.27258118,184.91,184.89,42.99]
[1760766608698,2.27258118,184.9,184.89,42.3]
[1760766608882,2.27258118,184.9,184.89,0.69]
[1760766609206,2.27258118,184.91,184.89,0.69]
[1760766609907,0.54021932,184.93,184.87,0.69]
[1760766610078,2.27258118,184.89,184.87,0.69]
[1760766610580,2.27258118,184.89,184.88,0.69]
[1760766611778,23.42021932,184.93,184.88,0.69]
[1760766612108,2.27258118,184.9,184.88,0.69]
[1760766613103,2.27258118,184.91,184.89,0.69]
[1760766615200,2.27258118,184.91,184.86,48.25044797]
[1760766615399,2.27258118,184.91,184.87,0.69]
[1760766615803,2.27258118,184.91,184.86,47.70949807]
[1760766616006,2.27258118,184.9,184.87,0.69]
[1760766616188,22.88,184.93,184.87,0.69]
[1760766616388,2.27258118,184.92,184.87,0.69]
[1760766617913,2.27258118,184.91,184.88,0.69]
[1760766618106,2.27258118,184.9,184.87,0.69]
[1760766618410,2.27258118,184.88,184.85,0.69]
[1760766618608,2.27258118,184.88,184.83,42.3]
[1760766618921,2.27258118,184.87,184.84,0.69]
[1760766619217,6.23207084,184.93,184.82,0.69]
[1760766619218,2.27258118,184.86,184.82,0.69]
[1760766619810,2.27258118,184.86,184.83,0.69]
[1760766620412,2.27258118,184.86,184.84,0.69]
[1760766620710,2.27258118,184.86,184.85,0.69]
[1760766621010,2.27258118,184.88,184.85,0.69]
[1760766624220,0.54021932,184.92,184.85,0.69]
[1760766624393,2.27258118,184.89,184.85,48.39977334]
[1760766624592,2.27258118,184.9,184.86,0.69]
[1760766624792,2.27258118,184.89,184.87,0.69]
[1760766628613,0.54021932,184.92,184.85,42.3]
[1760766628811,2.27258118,184.89,184.85,42.3]
[1760766629120,2.27258118,184.9,184.86,0.69]
[1760766629300,2.27258118,184.89,184.86,0.69]
[1760766629614,2.27258118,184.89,184.87,0.69]
[1760766630213,0.54021932,184.92,184.88,0.69]
[1760766630516,2.27258118,184.89,184.88,0.69]
[1760766630689,2.27258118,184.9,184.88,0.69]
[1760766631201,2.27258118,184.89,184.85,42.3]
[1760766631510,2.27258118,184.89,184.86,0.69]
[1760766631712,2.27258118,184.89,184.87,0.69]
[1760766634105,2.27258118,184.89,184.85,42.3]
[1760766634313,2.27258118,184.89,184.87,0.69]
[1760766634503,2.27258118,184.89,184.88,0.69]
[1760766634818,2.27258118,184.9,184.88,0.69]
[1760766636010,2.27258118,184.89,184.85,42.3]
[1760766636209,2.27258118,184.87,184.85,42.3]
[1760766636527,2.27258118,184.87,184.85,0.69]
[1760766636946,2.27258118,184.87,184.81,48.25184711]
[1760766637108,2.27258118,184.85,184.82,0.69]
[1760766637424,2.27258118,184.83,184.8,0.89]
[1760766637604,2.27258118,184.83,184.81,0.69]
[1760766638220,22.88,184.85,184.81,0.67]
[1760766638523,2.27258118,184.82,184.81,0.67]
[1760766644329,2.27258118,184.84,184.81,0.67]
[1760766644715,22.88,184.85,184.81,0.67]
[1760766644915,25.15258118,184.85,184.81,0.67]
[1760766646130,2.27258118,184.85,184.81,6.08090076]
[1760766646330,7.70093492,184.88,184.82,0.67]
[1760766646331,2.27258118,184.86,184.82,0.67]
[1760766646835,2.27258118,184.87,184.82,0.67]
[1760766647043,2.27258118,184.87,184.82,42.97]
[1760766647334,2.27258118,184.87,184.83,0.67]
[1760766647930,2.27258118,184.88,184.83,42.97]
[1760766648128,2.27258118,184.88,184.84,0.67]
[1760766649054,2.27258118,184.88,184.85,0.67]
[1760766649511,2.27258118,184.88,184.83,48.25137767]
[1760766649709,0.54021932,184.9,184.84,0.67]
[1760766649946,23.16432314,184.91,184.84,42.97]
[1760766649947,2.27258118,184.89,184.84,42.97]
[1760766650109,2.27258118,184.89,184.85,0.67]
[1760766650313,0.54021932,184.91,184.86,0.67]
[1760766650513,2.27258118,184.89,184.86,0.67]
[1760766651138,22.88,184.9,184.86,1.2109499]
[1760766651440,22.88,184.9,184.87,0.67]
[1760766652934,2.27258118,184.91,184.88,0.67]
[1760766653129,5.40603991,184.98,184.88,0.67]
[1760766653130,0.54021932,184.96,184.88,1.21089138]
[1760766653334,2.27258118,184.95,184.89,0.67]
[1760766653731,2.27258118,184.94,184.89,0.67]
[1760766654242,2.27258118,184.94,184.9,0.54083288]
[1760766654422,2.27258118,184.94,184.91,0.67]
[1760766654820,2.27258118,184.97,184.92,0.54077438]
[1760766655030,22.88,184.96,184.93,0.67]
[1760766655430,25.15258118,184.96,184.94,0.67]
[1760766655634,25.15258118,184.96,184.92,1.21077438]
[1760766655823,25.15258118,184.96,184.93,0.67]
[1760766656152,25.15258118,184.96,184.94,0.67]
[1760766656322,22.88,184.96,184.94,0.67]
[1760766656748,2.27258118,184.97,184.95,0.67]
[1760766657049,7.70093492,184.99,184.95,0.67]
[1760766657050,2.27258118,184.98,184.95,0.67]
[1760766657347,2.27258118,184.97,184.95,0.67]
[1760766657524,2.27258118,184.97,184.94,42.3]
[1760766657926,2.27258118,184.97,184.95,0.67]
[1760766658541,2.27258118,184.97,184.96,0.67]
[1760766659743,22.88,184.96,184.94,42.3]
[1760766659950,9.9735161,184.99,184.95,0.67]
[1760766660242,2.27258118,184.97,184.94,42.3]
[1760766660429,2.27258118,184.97,184.94,42.97]
[1760766660743,2.27258118,184.96,184.94,42.97]
[1760766660940,2.27258118,184.96,184.94,42.3]
[1760766661542,2.27258118,184.95,184.92,0.67]
[1760766661724,2.27258118,184.95,184.9,42.3]
[1760766661725,2.27258118,184.93,184.9,42.97]
[1760766662047,2.27258118,184.93,184.91,0.67]
[1760766662843,7.70093492,184.99,184.9,42.3]
[1760766662844,2.27258118,184.92,184.9,42.3]
[1760766663027,2.27258118,184.91,184.88,42.97]
[1760766663226,2.27258118,184.91,184.89,0.67]
[1760766664750,2.27258118,184.92,184.89,0.67]
[1760766664933,2.27258118,184.91,184.89,0.67]
[1760766665127,2.27258118,184.9,184.89,0.67]
[1760766665331,22.88,184.89,184.84,0.7]
[1760766665532,2.27258118,184.87,184.84,0.7]
[1760766667061,1.77258118,184.87,184.84,0.7]
[1760766668971,1.77258118,184.87,184.85,0.69]
[1760766669143,25.15258118,184.89,184.86,0.69]
[1760766669345,24.33475818,184.89,184.86,0.69]
[1760766669847,24.33475818,184.89,184.87,0.69]
[1760766670972,7.70093492,184.92,184.88,0.69]
[1760766671150,1.45475818,184.92,184.88,0.69]
[1760766671563,0.28432314,184.96,184.89,0.69]
[1760766671852,1.45475818,184.92,184.89,0.69]
[1760766672972,1.45475818,184.92,184.9,0.69]
[1760766673473,1.45475818,184.92,184.91,0.69]
[1760766673659,24.33475818,184.93,184.91,0.69]
[1760766673858,24.33475818,184.93,184.9,0.69]
[1760766674054,24.33475818,184.93,184.88,5.4087666]
[1760766674255,24.33475818,184.93,184.88,5.94965798]
[1760766674456,24.33475818,184.93,184.89,0.69]
[1760766675779,22.88,184.93,184.89,0.69]
[1760766675971,24.33475818,184.93,184.89,0.69]
[1760766677480,24.33475818,184.93,184.88,5.94965798]
[1760766677672,24.33475818,184.93,184.9,0.69]
[1760766677871,24.33475818,184.93,184.91,0.69]
[1760766679273,22.88,184.93,184.92,0.69]
[1760766679467,1.45475818,184.94,184.92,0.69]
[1760766680478,1.45475818,184.93,184.89,5.40862126]
[1760766680700,1.45475818,184.93,184.9,0.69]
[1760766680853,1.45475818,184.93,184.91,0.69]
[1760766681359,1.45475818,184.93,184.89,0.69]
[1760766681561,1.45475818,184.93,184.9,0.69]
[1760766681770,1.45475818,184.93,184.91,0.69]
[1760766683482,30.58093492,184.96,184.91,0.69]
[1760766683663,1.45475818,184.93,184.91,42.99]
[1760766686685,1.45475818,184.93,184.92,0.69]
[1760766687786,1.45475818,184.94,184.92,0.69]
[1760766687982,24.33475818,184.94,184.93,0.69]
[1760766688378,24.33475818,184.94,184.91,42.99]
[1760766688584,24.33475818,184.94,184.92,0.69]
[1760766690467,22.88,184.94,184.92,0.69]
[1760766690666,24.33475818,184.94,184.91,42.3]
[1760766690982,24.33475818,184.94,184.92,0.69]
[1760766691185,24.33475818,184.94,184.93,0.69]
[1760766692273,24.33475818,184.94,184.91,42.3]
[1760766692588,24.33475818,184.94,184.92,0.69]
[1760766693216,1.45475818,184.94,184.92,0.69]
[1760766694183,1.45475818,184.93,184.91,42.3]
[1760766694685,1.45475818,184.93,184.91,42.99]
[1760766695062,1.45475818,184.93,184.92,0.69]
[1760766695471,1.45475818,184.93,184.91,42.3]
[1760766695671,1.45475818,184.93,184.92,0.69]
[1760766697580,1.45475818,184.94,184.92,0.69]
[1760766699995,1.45475818,184.93,184.92,0.69]
[1760766703293,7.70093492,184.96,184.92,66.41077438]
[1760766703484,1.45475818,184.97,184.93,0.69]
[1760766704198,1.45475818,184.97,184.95,22.88]
[1760766704383,1.45475818,184.97,184.96,0.69]
[1760766705394,1.45475818,184.97,184.95,23.57]
[1760766705785,0.54021932,185.0,184.95,22.88]
[1760766705993,1.45475818,184.97,184.95,23.57]
[1760766706702,1.45475818,184.97,184.96,0.69]
[1760766707698,1.45475818,184.98,184.96,0.69]
[1760766707900,1.45475818,184.97,184.94,22.88]
[1760766708088,1.45475818,184.96,184.95,0.69]
[1760766708604,1.45475818,184.97,184.95,0.69]
[1760766708793,1.45475818,184.97,184.95,23.57]
[1760766708984,1.45475818,184.97,184.96,0.69]
[1760766709484,8.24115424,185.01,184.96,0.69]
[1760766709805,1.45475818,184.97,184.96,0.69]
[1760766711105,1.45475818,184.98,184.96,0.69]
[1760766711289,1.45475818,184.98,184.95,22.88]
[1760766711489,1.45475818,184.98,184.97,0.69]
[1760766711688,1.45475818,184.99,184.97,0.69]
[1760766711891,1.45475818,184.98,184.97,0.69]
[1760766717802,9.1556931,185.01,184.97,0.69]
[1760766717986,1.45475818,185.0,184.97,0.69]
[1760766719008,9.1556931,185.01,184.97,0.69]
[1760766721194,1.45475818,184.98,184.96,42.6]
[1760766721597,1.45475818,184.97,184.96,42.6]
[1760766721794,1.45475818,184.97,184.94,43.29]
[1760766722014,1.45475818,184.96,184.94,42.6]
[1760766722309,1.45475818,184.96,184.94,43.29]
[1760766724190,1.45475818,184.95,184.94,43.29]
[1760766729288,1.45475818,184.95,184.94,42.6]
[1760766729497,2.27167439,184.95,184.94,42.6]
[1760766729703,2.27167439,184.95,184.94,43.27]
[1760766729906,2.27167439,184.95,184.89,0.54086213]
[1760766730098,2.27167439,184.9,184.87,4.40195305]
[1760766730417,2.27167439,184.88,184.87,4.40195305]
[1760766730599,12.00532738,184.88,184.87,4.40195305]
[1760766730799,16.18067012,184.88,184.87,4.40195305]
[1760766731229,39.06067012,184.88,184.87,4.40195305]
[1760766731405,16.18067012,184.88,184.87,4.40195305]
[1760766732417,21.58958401,184.88,184.87,4.40195305]
[1760766732718,23.16432314,184.87,184.8,0.87]
[1760766732922,23.16432314,184.87,184.8,0.2]
[1760766732923,2.27167439,184.81,184.8,0.2]
[1760766733421,2.27167439,184.81,184.8,0.87]
[1760766735114,2.27167439,184.81,184.8,0.2]
[1760766735618,25.15167439,184.81,184.8,0.2]
[1760766737411,32.85260931,184.81,184.8,0.2]
[1760766739723,30.58093492,184.81,184.8,0.2]
[1760766739898,0.54021932,184.83,184.8,0.87]
[1760766740103,0.54021932,184.84,184.81,0.67]
[1760766740410,2.27167439,184.82,184.8,0.2]
[1760766740716,2.27167439,184.81,184.8,0.2]
[1760766741721,2.27167439,184.81,184.8,0.87]
[1760766742601,2.27167439,184.82,184.8,0.87]
[1760766742797,2.27167439,184.82,184.81,0.67]
[1760766744535,22.88,184.83,184.81,6.080894]
[1760766744740,2.27167439,184.87,184.82,0.67]
[1760766744924,2.27167439,184.85,184.82,43.27]
[1760766745225,2.27167439,184.85,184.83,0.67]
[1760766745529,2.27167439,184.84,184.83,0.67]
[1760766746624,2.27167439,184.85,184.83,0.67]
[1760766747005,2.27167439,184.85,184.82,42.6]
[1760766747206,2.27167439,184.86,184.83,0.67]
[1760766747526,2.27167439,184.86,184.84,0.67]
[1760766748630,2.27167439,184.85,184.84,0.67]
[1760766750419,3.49189371,184.85,184.8,0.87]
[1760766750623,2.27167439,184.82,184.8,0.87]
[1760766750820,2.27167439,184.81,184.8,0.2]
[1760766751031,25.83167439,184.81,184.8,0.2]
[1760766751833,25.15167439,184.81,184.8,0.2]
[1760766752016,25.83167439,184.81,184.8,0.2]
[1760766754737,25.15167439,184.81,184.8,0.2]
[1760766754939,25.15167439,184.81,184.8,0.87]
[1760766755119,22.88,184.81,184.8,0.2]
[1760766755319,25.15167439,184.81,184.8,0.2]
[1760766756323,25.83167439,184.81,184.8,0.2]
[1760766759838,25.15167439,184.81,184.8,0.2]
[1760766760153,25.15167439,184.81,184.8,0.87]
[1760766761333,25.15167439,184.81,184.8,0.2]
[1760766766051,25.15167439,184.81,184.8,0.87]
[1760766768156,25.15167439,184.81,184.8,0.2]
[1760766769351,3.24599753,184.81,184.8,0.2]
[1760766769542,3.78621685,184.81,184.8,0.2]
[1760766770246,32.07717946,184.81,184.8,0.2]
[1760766770548,34.34885385,184.81,184.78,0.2]
[1760766770731,2.55599753,184.79,184.78,0.2]
[1760766770928,3.09621685,184.79,184.78,0.2]
[1760766771141,3.78621685,184.79,184.78,0.2]
[1760766771733,9.10669039,184.79,184.78,0.2]
[1760766772347,14.51823863,184.79,184.78,0.2]
[1760766773243,37.39823863,184.79,184.78,0.2]
[1760766775462,14.51823863,184.79,184.78,0.2]
[1760766776346,9.10669039,184.79,184.78,0.2]
[1760766777862,14.51823863,184.79,184.78,0.2]
[1760766778558,37.39823863,184.79,184.78,0.2]
[1760766778767,31.29669039,184.79,184.78,0.87]
[1760766779066,8.41669039,184.79,184.78,0.87]
[1760766779365,8.41669039,184.79,184.78,0.2]
[1760766780960,31.29669039,184.79,184.78,0.2]
[1760766781161,8.41669039,184.79,184.78,0.2]
[1760766781661,31.29669039,184.79,184.78,0.2]
[1760766781861,8.41669039,184.79,184.78,0.2]
[1760766782447,31.29669039,184.79,184.78,0.2]
[1760766782648,8.41669039,184.79,184.78,0.2]
[1760766783064,31.29669039,184.79,184.78,0.2]
[1760766783364,8.41669039,184.79,184.78,0.2]
[1760766784563,8.41669039,184.79,184.78,0.87]
[1760766784766,8.41669039,184.79,184.78,0.2]
[1760766785865,7.59214793,184.79,184.78,0.86]
[1760766786671,2.27167439,184.79,184.78,0.86]
[1760766791450,1.45635686,184.79,184.78,0.86]
[1760766794879,0.54021932,184.82,184.78,43.46]
[1760766795055,1.45635686,184.83,184.79,0.71]
[1760766796375,1.45635686,184.83,184.79,6.12152272]
[1760766796575,1.45635686,184.83,184.8,0.71]
[1760766797379,1.45635686,184.84,184.8,0.71]
[1760766798783,1.45635686,184.85,184.81,0.54109626]
[1760766798976,1.45635686,184.84,184.82,0.71]
[1760766800177,1.45635686,184.83,184.79,42.6]
[1760766800483,1.45635686,184.83,184.79,0.54115482]
[1760766800790,1.45635686,184.83,184.8,0.71]
[1760766800979,1.45635686,184.83,184.79,0.54115482]
[1760766801180,1.45635686,184.83,184.78,0.2]
[1760766801181,1.45635686,184.8,184.78,0.2]
[1760766801366,1.45635686,184.8,184.78,0.91]
[1760766801566,1.45635686,184.79,184.78,0.91]
[1760766801767,1.45635686,184.8,184.78,0.91]
[1760766802677,1.45635686,184.8,184.79,0.71]
[1760766803069,1.45635686,184.81,184.79,0.71]
[1760766803388,1.45635686,184.8,184.79,0.71]
[1760766803566,1.45635686,184.8,184.78,0.2]
[1760766803890,1.45635686,184.8,184.78,0.91]
[1760766805268,1.45635686,184.79,184.78,0.91]
[1760766805468,1.45635686,184.8,184.78,0.91]
[1760766806278,1.45635686,184.79,184.78,0.2]
[1760766806479,2.17635686,184.79,184.78,0.2]
[1760766806883,25.05635686,184.79,184.78,0.2]
[1760766807784,0.28432314,184.81,184.78,0.2]
[1760766808089,1.45635686,184.79,184.78,0.2]
[1760766813200,24.33635686,184.79,184.78,0.2]
[1760766813595,25.59657618,184.79,184.78,0.2]
[1760766814192,24.87657618,184.79,184.78,0.2]
[1760766815096,2.71657618,184.79,184.78,0.2]
[1760766815298,2.17635686,184.79,184.78,0.2]
[1760766816509,2.46068,184.79,184.78,0.2]
[1760766816689,3.00089932,184.79,184.78,0.2]
[1760766820516,16.11338248,184.79,184.78,0.2]
[1760766820841,16.11338248,184.79,184.76,0.2]
[1760766820842,8.41244756,184.79,184.76,0.2]
[1760766821020,1.74068,184.77,184.76,0.2]
[1760766821314,2.28089932,184.77,184.76,0.2]
[1760766824607,2.95089932,184.77,184.76,0.2]
[1760766825822,2.28089932,184.77,184.76,0.2]
[1760766827244,2.95089932,184.77,184.76,0.2]
[1760766827410,31.24303332,184.77,184.69,0.9]
[1760766827617,1.45635686,184.7,184.69,0.2]
[1760766828129,1.45635686,184.7,184.69,0.9]
[1760766830733,0.82454246,184.74,184.69,0.9]
[1760766830734,1.45635686,184.71,184.69,0.9]
[1760766831034,1.45635686,184.72,184.7,0.7]
[1760766832718,1.45635686,184.71,184.7,0.7]
[1760766838445,0.67,184.74,184.7,0.7]
[1760766838648,1.45635686,184.71,184.7,0.7]
[1760766842013,1.45635686,184.72,184.7,0.7]
[1760766842929,1.45635686,184.72,184.69,0.2]
[1760766843124,1.45635686,184.71,184.7,0.7]
[1760766843623,1.45635686,184.72,184.7,0.7]
[1760766843844,1.45635686,184.72,184.71,0.7]
[1760766844542,1.45635686,184.72,184.69,43.49]
[1760766844743,1.45635686,184.71,184.69,42.8]
[1760766844920,1.45635686,184.71,184.7,0.69]
[1760766848516,1.45635686,184.72,184.7,0.69]
[1760766848720,1.45635686,184.72,184.71,0.67]
[1760766853352,2.27734431,184.72,184.71,0.67]
[1760766861359,1.22021932,184.75,184.71,0.67]
[1760766861561,2.27734431,184.72,184.71,0.67]
[1760766864251,2.27734431,184.72,184.7,0.67]
[1760766864461,2.27734431,184.72,184.71,0.67]
[1760766868373,2.27734431,184.72,184.7,0.67]
[1760766868668,2.27734431,184.71,184.7,0.67]
[1760766872948,2.27734431,184.72,184.7,0.67]
[1760766873967,2.27734431,184.73,184.7,43.27]
[1760766874174,2.27734431,184.73,184.71,0.67]
[1760766876057,2.27734431,184.73,184.72,0.67]
[1760766876378,2.27734431,184.75,184.72,0.67]
[1760766876683,2.27734431,184.75,184.73,0.67]
[1760766876977,2.27734431,184.74,184.73,0.67]
[1760766878462,2.27734431,184.75,184.73,0.67]
[1760766878650,2.27734431,184.75,184.74,0.66]
[1760766878855,2.27734431,184.77,184.74,0.66]
[1760766879057,2.27734431,184.77,184.75,0.66]
[1760766879259,2.27734431,184.76,184.74,0.66]
[1760766880072,2.27734431,184.76,184.75,0.66]
[1760766880251,2.27734431,184.77,184.75,0.66]
[1760766880951,2.27734431,184.77,184.76,0.66]
[1760766881369,2.27734431,184.79,184.76,0.66]
[1760766881564,2.27734431,184.78,184.76,43.26]
[1760766881769,2.27734431,184.78,184.77,0.66]
[1760766885764,2.27734431,184.78,184.77,43.26]
[1760766886272,2.93734431,184.78,184.77,42.6]
[1760766887073,0.66,184.78,184.77,42.6]
[1760766887389,2.93734431,184.78,184.77,42.6]
[1760766888493,2.27734431,184.78,184.77,42.6]
[1760766891780,2.27734431,184.78,184.76,0.72]
[1760766891981,2.27734431,184.77,184.76,0.72]
[1760766895684,2.27734431,184.78,184.76,0.72]
[1760766896576,2.27734431,184.78,184.75,16.27913286]
[1760766896781,2.27734431,184.78,184.76,0.72]
[1760766896980,2.27734431,184.78,184.75,16.27913286]
[1760766897194,2.27734431,184.78,184.76,0.72]
[1760766897789,2.27734431,184.77,184.75,42.6]
[1760766897983,2.27734431,184.77,184.76,0.72]
[1760766900781,2.27734431,184.78,184.76,0.72]
[1760766903091,0.71,184.8,184.76,0.72]
[1760766903292,2.27734431,184.78,184.76,0.72]
[1760766907102,2.27734431,184.78,184.76,0.67]
[1760766907696,2.27734431,184.8,184.76,43.81124269]
[1760766907904,2.27734431,184.8,184.77,0.69]
[1760766908607,2.27734431,184.8,184.77,16.96736632]
[1760766908799,2.27734431,184.8,184.78,0.69]
[1760766908998,2.27734431,184.8,184.79,0.69]
[1760766909204,2.27734431,184.8,184.78,0.69]
[1760766910306,2.27734431,184.8,184.78,2.96734431]
[1760766910502,2.27734431,184.8,184.79,0.69]
[1760766911007,2.27734431,184.8,184.78,2.96734431]
[1760766911186,2.27734431,184.8,184.79,0.69]
[1760766913409,1.45620507,184.8,184.79,0.69]
[1760766913711,1.45620507,184.81,184.79,0.69]
[1760766913892,0.82454246,184.86,184.79,0.69]
[1760766913893,1.45620507,184.82,184.79,43.83115482]
[1760766914209,1.45620507,184.82,184.8,0.69]
[1760766915098,1.45620507,184.82,184.79,58.87560016]
[1760766915304,1.45620507,184.82,184.8,0.69]
[1760766915692,1.45620507,184.82,184.8,2.86008002]
[1760766915892,1.45620507,184.82,184.81,0.69]